[Event "Late-Titled-Tuesday-Blitz-August-29-2023"]
[Site "Chess.com"]
[Date "2023.08.29"]
[Round "3"]
[White "GoltsevDmitry2000"]
[Black "alexrustemov"]
[Result "1/2-1/2"]
[WhiteElo "2621"]
[BlackElo "2879"]
[TimeControl "180+1"]
[EndTime "14:28:40 PDT"]
[Termination "Game drawn by repetition"]

1. e4 {[%clk 0:03:00.2]} 1... e6 {[%clk 0:03:00.4]} 2. d4 {[%clk 0:02:59.7]}
2... d5 {[%clk 0:03:00.9]} 3. exd5 {[%clk 0:03:00.6]} 3... exd5 {[%clk
0:03:01.5]} 4. Nf3 {[%clk 0:03:01.5]} 4... Bf5 {[%clk 0:03:01.8]} 5. c4 {[%clk
0:03:02.4]} 5... Bxb1 {[%clk 0:03:01.3]} 6. Rxb1 {[%clk 0:03:02.5]} 6... Bb4+
{[%clk 0:03:01.7]} 7. Bd2 {[%clk 0:03:02.3]} 7... Bxd2+ {[%clk 0:03:02.1]} 8.
Qxd2 {[%clk 0:03:03.2]} 8... Nf6 {[%clk 0:03:02.4]} 9. Bd3 {[%clk 0:03:03.4]}
9... O-O {[%clk 0:03:02.2]} 10. O-O {[%clk 0:03:02.2]} 10... c6 {[%clk
0:03:01.3]} 11. Rfe1 {[%clk 0:03:00]} 11... Nbd7 {[%clk 0:03:00.9]} 12. Ne5
{[%clk 0:02:58.7]} 12... Re8 {[%clk 0:02:57.8]} 13. Qf4 {[%clk 0:02:55.9]} 13...
Nf8 {[%clk 0:02:53.9]} 14. cxd5 {[%clk 0:02:53.9]} 14... cxd5 {[%clk 0:02:48.6]}
15. Rbc1 {[%clk 0:02:51.9]} 15... Ne6 {[%clk 0:02:46.7]} 16. Qh4 {[%clk
0:02:50.8]} 16... g6 {[%clk 0:02:23.8]} 17. Re3 {[%clk 0:02:43.5]} 17... Nh5
{[%clk 0:02:17.9]} 18. Qg4 {[%clk 0:02:21.9]} 18... Qf6 {[%clk 0:02:16.8]} 19.
Rf3 {[%clk 0:02:19.8]} 19... Qg7 {[%clk 0:02:12]} 20. Rxf7 {[%clk 0:02:18.7]}
20... Qh6 {[%clk 0:02:01.3]} 21. Re1 {[%clk 0:02:06.7]} 21... Qd2 {[%clk
0:01:47.2]} 22. Rd1 {[%clk 0:01:55.5]} 22... Qg5 {[%clk 0:01:42.6]} 23. Qxg5
{[%clk 0:01:53.4]} 23... Nxg5 {[%clk 0:01:43.5]} 24. Rxb7 {[%clk 0:01:54.3]}
24... Nf4 {[%clk 0:01:40.2]} 25. Bf1 {[%clk 0:01:50.4]} 25... Rab8 {[%clk
0:01:39.5]} 26. Rxb8 {[%clk 0:01:45.5]} 26... Rxb8 {[%clk 0:01:40]} 27. Rd2
{[%clk 0:01:44.3]} 27... Ne4 {[%clk 0:01:37.1]} 28. Rc2 {[%clk 0:01:42.1]} 28...
Ne6 {[%clk 0:01:37.7]} 29. Nc6 {[%clk 0:01:40.3]} 29... Rb7 {[%clk 0:01:29.3]}
30. f3 {[%clk 0:01:37.7]} 30... Nd6 {[%clk 0:01:25.6]} 31. g3 {[%clk 0:01:35.4]}
31... Nf5 {[%clk 0:01:20]} 32. Kf2 {[%clk 0:01:20.4]} 32... Nexd4 {[%clk
0:01:18.5]} 33. Nxd4 {[%clk 0:01:21.3]} 33... Nxd4 {[%clk 0:01:18.9]} 34. Rd2
{[%clk 0:01:22.2]} 34... Nf5 {[%clk 0:01:12]} 35. b4 {[%clk 0:01:18]} 35... Rxb4
{[%clk 0:01:09.2]} 36. Rxd5 {[%clk 0:01:16.5]} 36... Rb2+ {[%clk 0:01:09]} 37.
Kg1 {[%clk 0:01:16.9]} 37... Rb1 {[%clk 0:00:57]} 38. Re5 {[%clk 0:01:10]} 38...
Kg7 {[%clk 0:00:51.9]} 39. f4 {[%clk 0:01:09.2]} 39... Nd4 {[%clk 0:00:44.5]}
40. Re7+ {[%clk 0:01:06.1]} 40... Kh8 {[%clk 0:00:42.9]} 41. Rxa7 {[%clk
0:01:04.2]} 41... Nf3+ {[%clk 0:00:37.6]} 42. Kf2 {[%clk 0:01:02.8]} 42... Nxh2
{[%clk 0:00:35.8]} 43. Be2 {[%clk 0:01:02.4]} 43... Rb2 {[%clk 0:00:36.3]} 44.
Ke3 {[%clk 0:01:00.3]} 44... h5 {[%clk 0:00:31.1]} 45. a4 {[%clk 0:00:54.8]}
45... Rb3+ {[%clk 0:00:31.1]} 46. Kd4 {[%clk 0:00:52.4]} 46... Rxg3 {[%clk
0:00:30]} 47. a5 {[%clk 0:00:52.3]} 47... Nf3+ {[%clk 0:00:26.3]} 48. Kd5 {[%clk
0:00:49.9]} 48... Ng1 {[%clk 0:00:22.5]} 49. Bc4 {[%clk 0:00:45.4]} 49... Ra3
{[%clk 0:00:21.6]} 50. a6 {[%clk 0:00:45.4]} 50... h4 {[%clk 0:00:21.3]} 51. Ke6
{[%clk 0:00:36.5]} 51... h3 {[%clk 0:00:21]} 52. Kf6 {[%clk 0:00:35.7]} 52... h2
{[%clk 0:00:16.5]} 53. Bd5 {[%clk 0:00:36.1]} 53... Nh3 {[%clk 0:00:11.1]} 54.
Ra8+ {[%clk 0:00:26.2]} 54... Kh7 {[%clk 0:00:10.1]} 55. Ra7+ {[%clk 0:00:26.5]}
55... Kh8 {[%clk 0:00:09.1]} 56. Ra8+ {[%clk 0:00:14.7]} 56... Kh7 {[%clk
0:00:09.5]} 57. Ra7+ {[%clk 0:00:14.9]} 57... Kh8 {[%clk 0:00:10.2]} 1/2-1/2

[Event "Late-Titled-Tuesday-Blitz-August-29-2023"]
[Site "Chess.com"]
[Date "2023.08.29"]
[Round "3"]
[White "Zq1"]
[Black "NowInChess"]
[Result "1-0"]
[WhiteElo "2535"]
[BlackElo "2273"]
[TimeControl "180+1"]
[EndTime "14:28:41 PDT"]
[Termination "Zq1 won by resignation"]

1. d4 {[%clk 0:03:00.9]} 1... Nf6 {[%clk 0:02:59.2]} 2. c4 {[%clk 0:03:00.9]}
2... c5 {[%clk 0:02:58.6]} 3. Nf3 {[%clk 0:03:00.2]} 3... cxd4 {[%clk
0:02:58.2]} 4. Nxd4 {[%clk 0:03:00.3]} 4... e5 {[%clk 0:02:58.6]} 5. Nb5 {[%clk
0:03:00]} 5... d5 {[%clk 0:02:58.7]} 6. cxd5 {[%clk 0:02:59.3]} 6... Bb4+ {[%clk
0:02:56.5]} 7. Bd2 {[%clk 0:02:55.3]} 7... Bc5 {[%clk 0:02:56.7]} 8. N5c3 {[%clk
0:02:50.3]} 8... O-O {[%clk 0:02:46.5]} 9. e3 {[%clk 0:02:47.1]} 9... Nxd5
{[%clk 0:02:38]} 10. Nxd5 {[%clk 0:02:46.1]} 10... Qxd5 {[%clk 0:02:38.9]} 11.
Nc3 {[%clk 0:02:45.5]} 11... Qc6 {[%clk 0:02:37.5]} 12. Qf3 {[%clk 0:02:41.3]}
12... Be6 {[%clk 0:02:31.4]} 13. Bb5 {[%clk 0:02:36.8]} 13... Qxf3 {[%clk
0:02:30.6]} 14. gxf3 {[%clk 0:02:36.1]} 14... a6 {[%clk 0:02:31]} 15. Bd3 {[%clk
0:02:33.6]} 15... Nc6 {[%clk 0:02:30.7]} 16. a3 {[%clk 0:02:32.4]} 16... Rfd8
{[%clk 0:02:19.4]} 17. Ke2 {[%clk 0:02:30]} 17... Rd7 {[%clk 0:02:10.8]} 18. Ne4
{[%clk 0:02:23.6]} 18... Be7 {[%clk 0:02:05.7]} 19. Bc3 {[%clk 0:01:54.5]} 19...
Rad8 {[%clk 0:02:03.4]} 20. Bc2 {[%clk 0:01:54.4]} 20... f5 {[%clk 0:01:54]} 21.
Nd2 {[%clk 0:01:47.5]} 21... Bh4 {[%clk 0:01:24]} 22. Rhd1 {[%clk 0:01:45.1]}
22... b5 {[%clk 0:01:11]} 23. Ke1 {[%clk 0:01:31.4]} 23... Kf7 {[%clk
0:00:43.2]} 24. Nb3 {[%clk 0:01:28.7]} 24... Rxd1+ {[%clk 0:00:38.2]} 25. Rxd1
{[%clk 0:01:27.1]} 25... Rxd1+ {[%clk 0:00:38.3]} 26. Bxd1 {[%clk 0:01:27]}
26... Be7 {[%clk 0:00:22.5]} 27. Na5 {[%clk 0:01:12]} 27... Nxa5 {[%clk
0:00:19.5]} 28. Bxa5 {[%clk 0:01:11.5]} 28... Bd6 {[%clk 0:00:18.7]} 29. Bc3
{[%clk 0:01:06.7]} 29... Bc4 {[%clk 0:00:18]} 30. b3 {[%clk 0:00:49.5]} 30...
Bd5 {[%clk 0:00:17.5]} 31. a4 {[%clk 0:00:42.3]} 31... bxa4 {[%clk 0:00:18.3]}
32. bxa4 {[%clk 0:00:41.8]} 32... Bc4 {[%clk 0:00:19]} 33. Be2 {[%clk
0:00:38.6]} 33... Bb3 {[%clk 0:00:18]} 34. a5 {[%clk 0:00:37.1]} 34... Bd5
{[%clk 0:00:14.1]} 35. Bxa6 {[%clk 0:00:32.8]} 35... Bxf3 {[%clk 0:00:14.6]} 36.
Bc8 {[%clk 0:00:32.2]} 36... g6 {[%clk 0:00:12.7]} 37. a6 {[%clk 0:00:31.5]}
37... Bc5 {[%clk 0:00:12.2]} 38. Bb7 {[%clk 0:00:28]} 38... Bxb7 {[%clk
0:00:09.3]} 39. axb7 {[%clk 0:00:27.5]} 39... Bd6 {[%clk 0:00:10]} 40. Bb4
{[%clk 0:00:24.8]} 40... Bb8 {[%clk 0:00:09.7]} 41. f3 {[%clk 0:00:20.7]} 41...
Ke6 {[%clk 0:00:09.9]} 42. e4 {[%clk 0:00:18.9]} 42... fxe4 {[%clk 0:00:09.4]}
43. fxe4 {[%clk 0:00:18.5]} 43... Kd7 {[%clk 0:00:10.3]} 44. Ke2 {[%clk
0:00:16.9]} 44... Kc6 {[%clk 0:00:10.9]} 45. Kd3 {[%clk 0:00:17]} 45... Kxb7
{[%clk 0:00:11.6]} 46. Kc4 {[%clk 0:00:17.3]} 46... Kc6 {[%clk 0:00:12.3]} 47.
Ba3 {[%clk 0:00:17.2]} 47... Bd6 {[%clk 0:00:12.9]} 48. Bb2 {[%clk 0:00:16.4]}
48... Bc7 {[%clk 0:00:12.5]} 49. Bc1 {[%clk 0:00:15.4]} 49... Bd6 {[%clk
0:00:12.6]} 50. Bd2 {[%clk 0:00:15.5]} 50... h5 {[%clk 0:00:13.2]} 51. Be3
{[%clk 0:00:14.6]} 51... Be7 {[%clk 0:00:13.2]} 52. Bd2 {[%clk 0:00:14]} 52...
Bg5 {[%clk 0:00:12.7]} 53. Bxg5 {[%clk 0:00:13.1]} 53... Kd6 {[%clk 0:00:12]}
54. Kb5 {[%clk 0:00:12.2]} 54... Ke6 {[%clk 0:00:12]} 55. Kc6 {[%clk 0:00:11.6]}
55... Kf7 {[%clk 0:00:05.1]} 56. Kd6 {[%clk 0:00:10.6]} 1-0

[Event "Late-Titled-Tuesday-Blitz-August-29-2023"]
[Site "Chess.com"]
[Date "2023.08.29"]
[Round "3"]
[White "KNVB"]
[Black "nihalsarin"]
[Result "0-1"]
[WhiteElo "2823"]
[BlackElo "3123"]
[TimeControl "180+1"]
[EndTime "14:28:47 PDT"]
[Termination "nihalsarin won by resignation"]

1. d4 {[%clk 0:02:57.6]} 1... d5 {[%clk 0:03:00.7]} 2. Bf4 {[%clk 0:02:56.5]}
2... Nf6 {[%clk 0:03:01.5]} 3. e3 {[%clk 0:02:56.9]} 3... Bf5 {[%clk 0:03:02.1]}
4. c4 {[%clk 0:02:56.9]} 4... e6 {[%clk 0:03:02.8]} 5. a3 {[%clk 0:02:57.4]}
5... c6 {[%clk 0:03:02.4]} 6. Nc3 {[%clk 0:02:19.2]} 6... Bd6 {[%clk 0:03:02.5]}
7. Bxd6 {[%clk 0:02:09.2]} 7... Qxd6 {[%clk 0:03:03.4]} 8. Nf3 {[%clk
0:02:09.6]} 8... O-O {[%clk 0:03:03.6]} 9. Bd3 {[%clk 0:02:01.3]} 9... Bxd3
{[%clk 0:03:03.7]} 10. Qxd3 {[%clk 0:02:02.2]} 10... Nbd7 {[%clk 0:03:04.3]} 11.
O-O {[%clk 0:02:01.2]} 11... Rfe8 {[%clk 0:03:04.9]} 12. Rfd1 {[%clk 0:01:56.7]}
12... h6 {[%clk 0:03:05.5]} 13. h3 {[%clk 0:01:54.9]} 13... a5 {[%clk
0:03:05.6]} 14. Rac1 {[%clk 0:01:32.6]} 14... a4 {[%clk 0:03:05.7]} 15. e4
{[%clk 0:01:13.6]} 15... dxe4 {[%clk 0:02:59]} 16. Nxe4 {[%clk 0:01:14.5]} 16...
Nxe4 {[%clk 0:02:59.4]} 17. Qxe4 {[%clk 0:01:15.4]} 17... Nf6 {[%clk 0:02:59.7]}
18. Qc2 {[%clk 0:01:15.9]} 18... Qc7 {[%clk 0:02:59.7]} 19. Rd3 {[%clk
0:01:15.7]} 19... Red8 {[%clk 0:03:00]} 20. Rcd1 {[%clk 0:01:08.5]} 20... Qb6
{[%clk 0:03:00.2]} 21. Ne5 {[%clk 0:00:49.8]} 21... Qa5 {[%clk 0:03:00.5]} 22.
c5 {[%clk 0:00:41.3]} 22... Rd5 {[%clk 0:02:59.4]} 23. Nc4 {[%clk 0:00:41.4]}
23... Qb5 {[%clk 0:02:54.2]} 24. Nb6 {[%clk 0:00:41.1]} 24... Rad8 {[%clk
0:02:54.8]} 25. Nxd5 {[%clk 0:00:40.5]} 25... Nxd5 {[%clk 0:02:55.7]} 26. g3
{[%clk 0:00:38.8]} 26... h5 {[%clk 0:02:53.8]} 27. h4 {[%clk 0:00:38.8]} 27...
g6 {[%clk 0:02:54.5]} 28. b3 {[%clk 0:00:34.6]} 28... axb3 {[%clk 0:02:52.4]}
29. Qxb3 {[%clk 0:00:27.7]} 29... Qa6 {[%clk 0:02:52.6]} 30. Rb1 {[%clk
0:00:23.6]} 30... Rd7 {[%clk 0:02:52.8]} 31. Rd2 {[%clk 0:00:23.1]} 31... Kg7
{[%clk 0:02:53.1]} 32. Qd3 {[%clk 0:00:17.1]} 32... Qa7 {[%clk 0:02:47.8]} 33.
Rdb2 {[%clk 0:00:14.9]} 33... Ne7 {[%clk 0:02:44.4]} 34. Rb4 {[%clk 0:00:11.3]}
34... Nd5 {[%clk 0:02:44.1]} 35. R4b3 {[%clk 0:00:11]} 35... Ne7 {[%clk
0:02:43.8]} 36. Qc3 {[%clk 0:00:10.4]} 36... Kg8 {[%clk 0:02:41.7]} 37. Qb2
{[%clk 0:00:09.9]} 37... Nf5 {[%clk 0:02:26.5]} 38. Rxb7 {[%clk 0:00:09.7]}
38... Rxb7 {[%clk 0:02:27.4]} 39. Qxb7 {[%clk 0:00:10.3]} 39... Qxa3 {[%clk
0:02:28.3]} 40. Qb8+ {[%clk 0:00:10.1]} 40... Kh7 {[%clk 0:02:25.1]} 41. Rb7
{[%clk 0:00:04.9]} 41... Nh6 {[%clk 0:02:14.6]} 42. Qf4 {[%clk 0:00:04.5]} 42...
Qd3 {[%clk 0:02:09]} 43. Rc7 {[%clk 0:00:03.1]} 43... Qb5 {[%clk 0:01:58.5]} 44.
Kg2 {[%clk 0:00:03]} 44... Qb3 {[%clk 0:01:51.8]} 45. Qf3 {[%clk 0:00:02.6]}
45... Qc4 {[%clk 0:01:50.7]} 46. Qe4 {[%clk 0:00:02.3]} 46... Qa2 {[%clk
0:01:42.3]} 47. Rxc6 {[%clk 0:00:02.4]} 47... Nf5 {[%clk 0:01:42.8]} 48. Rc7
{[%clk 0:00:02.3]} 48... Kg8 {[%clk 0:01:42.5]} 49. d5 {[%clk 0:00:01.7]} 49...
Qa5 {[%clk 0:01:32.4]} 50. d6 {[%clk 0:00:01.6]} 50... Qd2 {[%clk 0:01:32.3]}
51. Qf3 {[%clk 0:00:01.9]} 51... e5 {[%clk 0:01:28.2]} 52. Rc8+ {[%clk
0:00:02.1]} 52... Kg7 {[%clk 0:01:28.6]} 53. Re8 {[%clk 0:00:02.3]} 53... Qd4
{[%clk 0:01:20.4]} 54. Kg1 {[%clk 0:00:02.4]} 54... Nh6 {[%clk 0:01:19.3]} 55.
Re7 {[%clk 0:00:02.1]} 55... Nf5 {[%clk 0:01:18.5]} 56. Re8 {[%clk 0:00:02.7]}
56... Nh6 {[%clk 0:01:15.7]} 57. Qe3 {[%clk 0:00:03.2]} 57... Qd1+ {[%clk
0:01:15.4]} 58. Kg2 {[%clk 0:00:03.8]} 58... Ng4 {[%clk 0:01:13.4]} 59. Qe4
{[%clk 0:00:03.8]} 59... Qd2 {[%clk 0:01:12.9]} 60. Qf3 {[%clk 0:00:03.7]} 60...
Qd4 {[%clk 0:01:13.2]} 61. Re7 {[%clk 0:00:03.8]} 61... Nf6 {[%clk 0:01:03.8]}
62. Kg1 {[%clk 0:00:02.6]} 62... Qxc5 {[%clk 0:00:57.9]} 63. Rc7 {[%clk
0:00:02]} 63... Qxd6 {[%clk 0:00:58]} 64. Qb7 {[%clk 0:00:02.6]} 64... Qe6
{[%clk 0:00:43.1]} 65. Re7 {[%clk 0:00:02.8]} 65... Qa2 {[%clk 0:00:43.9]} 66.
Qc7 {[%clk 0:00:01.4]} 66... Ng4 {[%clk 0:00:40.3]} 67. Qc5 {[%clk 0:00:01.1]}
67... Qb1+ {[%clk 0:00:38.8]} 68. Kg2 {[%clk 0:00:01.6]} 68... Qe4+ {[%clk
0:00:39.5]} 69. Kg1 {[%clk 0:00:01.7]} 69... Qe2 {[%clk 0:00:37.5]} 70. Rc7
{[%clk 0:00:01.7]} 70... Qd1+ {[%clk 0:00:35]} 71. Kg2 {[%clk 0:00:02]} 71...
Qe2 {[%clk 0:00:35]} 72. Qc2 {[%clk 0:00:02.4]} 72... Ne3+ {[%clk 0:00:34.9]}
73. Kg1 {[%clk 0:00:02.7]} 73... Nxc2 {[%clk 0:00:35.8]} 0-1

[Event "Late-Titled-Tuesday-Blitz-August-29-2023"]
[Site "Chess.com"]
[Date "2023.08.29"]
[Round "3"]
[White "gunslinger222"]
[Black "ameetghasi100"]
[Result "1-0"]
[WhiteElo "2482"]
[BlackElo "2661"]
[TimeControl "180+1"]
[EndTime "14:28:47 PDT"]
[Termination "gunslinger222 won by resignation"]

1. d4 {[%clk 0:02:57.9]} 1... Nf6 {[%clk 0:02:59.6]} 2. c4 {[%clk 0:02:58.5]}
2... g6 {[%clk 0:02:58.9]} 3. Nc3 {[%clk 0:02:58.7]} 3... Bg7 {[%clk 0:02:59.2]}
4. e4 {[%clk 0:02:59]} 4... O-O {[%clk 0:02:59.7]} 5. Nge2 {[%clk 0:02:59.7]}
5... d6 {[%clk 0:02:59.7]} 6. Ng3 {[%clk 0:03:00.4]} 6... c5 {[%clk 0:02:58.9]}
7. d5 {[%clk 0:03:00.5]} 7... a6 {[%clk 0:02:56.1]} 8. Bd3 {[%clk 0:02:59.6]}
8... Nbd7 {[%clk 0:02:52.1]} 9. f4 {[%clk 0:02:58.3]} 9... b5 {[%clk 0:02:51.8]}
10. cxb5 {[%clk 0:02:57.5]} 10... axb5 {[%clk 0:02:52.7]} 11. Bxb5 {[%clk
0:02:54.7]} 11... Qa5 {[%clk 0:02:50.2]} 12. O-O {[%clk 0:02:52]} 12... Ba6
{[%clk 0:02:50]} 13. Bxa6 {[%clk 0:02:38.6]} 13... Qxa6 {[%clk 0:02:45.5]} 14.
Qe2 {[%clk 0:02:27.3]} 14... Rfb8 {[%clk 0:02:40.3]} 15. Re1 {[%clk 0:02:07.3]}
15... Ne8 {[%clk 0:02:34.5]} 16. e5 {[%clk 0:01:53.3]} 16... Qxe2 {[%clk
0:02:21.4]} 17. Rxe2 {[%clk 0:01:51.1]} 17... dxe5 {[%clk 0:02:21.8]} 18. f5
{[%clk 0:01:51]} 18... Nd6 {[%clk 0:02:19.4]} 19. fxg6 {[%clk 0:01:48.2]} 19...
hxg6 {[%clk 0:02:17.4]} 20. Bg5 {[%clk 0:01:42.6]} 20... f6 {[%clk 0:02:14.8]}
21. Be3 {[%clk 0:01:42.2]} 21... f5 {[%clk 0:02:14.9]} 22. Bg5 {[%clk
0:01:38.5]} 22... Bf6 {[%clk 0:02:09.7]} 23. Bxf6 {[%clk 0:01:35.8]} 23... exf6
{[%clk 0:02:10.6]} 24. Rc1 {[%clk 0:01:16.7]} 24... c4 {[%clk 0:01:31.7]} 25. h4
{[%clk 0:01:11.7]} 25... Nc5 {[%clk 0:01:29]} 26. h5 {[%clk 0:01:02.3]} 26...
Nd3 {[%clk 0:01:28.6]} 27. Rcc2 {[%clk 0:01:02.6]} 27... g5 {[%clk 0:01:24.5]}
28. a3 {[%clk 0:01:00.3]} 28... Ra7 {[%clk 0:01:16.2]} 29. Nd1 {[%clk
0:00:52.5]} 29... Rab7 {[%clk 0:00:41.1]} 30. Rcd2 {[%clk 0:00:43.3]} 30... e4
{[%clk 0:00:18.9]} 31. Ne3 {[%clk 0:00:26.3]} 31... f4 {[%clk 0:00:18.6]} 32.
Nef5 {[%clk 0:00:26.4]} 32... Nxf5 {[%clk 0:00:13]} 33. Nxf5 {[%clk 0:00:27.3]}
33... e3 {[%clk 0:00:12.9]} 34. Rc2 {[%clk 0:00:26.6]} 34... Rxb2 {[%clk
0:00:13]} 35. Rxb2 {[%clk 0:00:20.6]} 35... Rxb2 {[%clk 0:00:13.4]} 36. Rxb2
{[%clk 0:00:20.4]} 36... Nxb2 {[%clk 0:00:12.8]} 37. d6 {[%clk 0:00:19.7]} 37...
e2 {[%clk 0:00:13]} 38. Kf2 {[%clk 0:00:18.9]} 38... Nd3+ {[%clk 0:00:12.4]} 39.
Kxe2 {[%clk 0:00:18.7]} 39... Ne5 {[%clk 0:00:12.9]} 40. Kd2 {[%clk 0:00:18.1]}
40... g4 {[%clk 0:00:13]} 41. a4 {[%clk 0:00:17.4]} 41... f3 {[%clk 0:00:11.9]}
42. gxf3 {[%clk 0:00:17.4]} 42... gxf3 {[%clk 0:00:12.8]} 43. a5 {[%clk
0:00:17]} 43... Kf7 {[%clk 0:00:12.4]} 44. a6 {[%clk 0:00:17.1]} 44... f2 {[%clk
0:00:11.3]} 45. Ne3 {[%clk 0:00:15.9]} 45... Nc6 {[%clk 0:00:07.2]} 46. h6
{[%clk 0:00:15.4]} 46... Kg6 {[%clk 0:00:06.3]} 47. d7 {[%clk 0:00:14.9]} 47...
Kxh6 {[%clk 0:00:05]} 48. a7 {[%clk 0:00:15.3]} 48... f5 {[%clk 0:00:04.5]} 49.
a8=Q {[%clk 0:00:14.6]} 49... f4 {[%clk 0:00:05.4]} 50. Nf1 {[%clk 0:00:13.8]}
50... Ne5 {[%clk 0:00:04.5]} 51. Qe4 {[%clk 0:00:12.6]} 51... Nd3 {[%clk
0:00:03.5]} 52. Qxd3 {[%clk 0:00:12]} 52... cxd3 {[%clk 0:00:03]} 53. d8=Q
{[%clk 0:00:12.1]} 53... Kg6 {[%clk 0:00:03.9]} 54. Qxd3+ {[%clk 0:00:11.8]}
54... Kh5 {[%clk 0:00:04.8]} 55. Qf3+ {[%clk 0:00:12]} 55... Kg5 {[%clk
0:00:05.7]} 56. Ke2 {[%clk 0:00:11.7]} 1-0

[Event "Late-Titled-Tuesday-Blitz-August-29-2023"]
[Site "Chess.com"]
[Date "2023.08.29"]
[Round "3"]
[White "Cipy77"]
[Black "Kostukov_Alex"]
[Result "1/2-1/2"]
[WhiteElo "2561"]
[BlackElo "2404"]
[TimeControl "180+1"]
[EndTime "14:28:50 PDT"]
[Termination "Game drawn by repetition"]

1. c4 {[%clk 0:03:00.9]} 1... c5 {[%clk 0:02:58.2]} 2. g3 {[%clk 0:02:57]} 2...
Nf6 {[%clk 0:02:58.7]} 3. Bg2 {[%clk 0:02:57.4]} 3... g6 {[%clk 0:02:59.2]} 4.
Nc3 {[%clk 0:02:57.4]} 4... Bg7 {[%clk 0:02:59.6]} 5. d3 {[%clk 0:02:56.6]} 5...
O-O {[%clk 0:02:59.5]} 6. Nf3 {[%clk 0:02:57]} 6... Nc6 {[%clk 0:02:59]} 7. O-O
{[%clk 0:02:57.5]} 7... d5 {[%clk 0:02:59.4]} 8. cxd5 {[%clk 0:02:57.4]} 8...
Nxd5 {[%clk 0:03:00.3]} 9. Bd2 {[%clk 0:02:57.7]} 9... Nc7 {[%clk 0:02:59.9]}
10. Rc1 {[%clk 0:02:57.6]} 10... b6 {[%clk 0:03:00.1]} 11. a3 {[%clk 0:02:57.1]}
11... Bb7 {[%clk 0:03:00.3]} 12. Qc2 {[%clk 0:02:57.4]} 12... Ne6 {[%clk
0:02:53.6]} 13. Qb1 {[%clk 0:02:56.8]} 13... Qd7 {[%clk 0:02:32]} 14. b4 {[%clk
0:02:55.5]} 14... cxb4 {[%clk 0:02:29]} 15. axb4 {[%clk 0:02:56.4]} 15... Ncd4
{[%clk 0:02:28.8]} 16. Nxd4 {[%clk 0:02:52.3]} 16... Nxd4 {[%clk 0:02:28.8]} 17.
Bxb7 {[%clk 0:02:40.1]} 17... Qxb7 {[%clk 0:02:27.9]} 18. f3 {[%clk 0:02:40.2]}
18... Rfc8 {[%clk 0:02:21.4]} 19. Kg2 {[%clk 0:02:38.7]} 19... Nf5 {[%clk
0:02:08.6]} 20. Qb3 {[%clk 0:02:26.2]} 20... h5 {[%clk 0:02:03.5]} 21. e4 {[%clk
0:02:01.1]} 21... Nd4 {[%clk 0:01:57.9]} 22. Qd5 {[%clk 0:02:01]} 22... Qxd5
{[%clk 0:01:52.7]} 23. Nxd5 {[%clk 0:02:01]} 23... Kf8 {[%clk 0:01:51.5]} 24.
Bg5 {[%clk 0:01:51.6]} 24... f6 {[%clk 0:01:43.6]} 25. Be3 {[%clk 0:01:50.4]}
25... Ne6 {[%clk 0:01:25.8]} 26. b5 {[%clk 0:01:45.6]} 26... f5 {[%clk
0:01:21.7]} 27. h4 {[%clk 0:01:38.9]} 27... Bb2 {[%clk 0:01:17.9]} 28. Rxc8+
{[%clk 0:01:32.6]} 28... Rxc8 {[%clk 0:01:17.7]} 29. Rf2 {[%clk 0:01:33.2]}
29... Bd4 {[%clk 0:01:12]} 30. Ra2 {[%clk 0:01:32.8]} 30... Bxe3 {[%clk
0:01:09.3]} 31. Nxe3 {[%clk 0:01:33.7]} 31... fxe4 {[%clk 0:01:08.8]} 32. dxe4
{[%clk 0:01:30.4]} 32... Rc7 {[%clk 0:01:08]} 33. Nd5 {[%clk 0:01:30.3]} 33...
Rd7 {[%clk 0:01:07.7]} 34. Ra4 {[%clk 0:01:06.7]} 34... Kf7 {[%clk 0:01:07.1]}
35. Kf2 {[%clk 0:01:06.3]} 35... Nc5 {[%clk 0:01:04.8]} 36. Ra2 {[%clk
0:01:01.8]} 36... e6 {[%clk 0:01:03.4]} 37. Nb4 {[%clk 0:00:58.9]} 37... Kf6
{[%clk 0:00:50.6]} 38. Nc6 {[%clk 0:00:58.8]} 38... e5 {[%clk 0:00:31.6]} 39.
Rxa7 {[%clk 0:00:57.9]} 39... Rd2+ {[%clk 0:00:29.1]} 40. Ke3 {[%clk 0:00:57]}
40... Rd3+ {[%clk 0:00:29.5]} 41. Ke2 {[%clk 0:00:57.1]} 41... Rb3 {[%clk
0:00:29.6]} 42. Re7 {[%clk 0:00:44.5]} 42... Ne6 {[%clk 0:00:21.6]} 43. f4
{[%clk 0:00:33.6]} 43... exf4 {[%clk 0:00:18.1]} 44. Rxe6+ {[%clk 0:00:33.8]}
44... Kxe6 {[%clk 0:00:14.6]} 45. Nd4+ {[%clk 0:00:34.3]} 45... Ke5 {[%clk
0:00:14.7]} 46. Nxb3 {[%clk 0:00:34.5]} 46... fxg3 {[%clk 0:00:14.4]} 47. Nd2
{[%clk 0:00:31.7]} 47... Kf4 {[%clk 0:00:12.5]} 48. Kf1 {[%clk 0:00:30]} 48...
g5 {[%clk 0:00:11.5]} 49. hxg5 {[%clk 0:00:24.9]} 49... Kxg5 {[%clk 0:00:11.5]}
50. Kg2 {[%clk 0:00:24.4]} 50... Kf4 {[%clk 0:00:08.5]} 51. Nc4 {[%clk
0:00:16.7]} 51... h4 {[%clk 0:00:08.5]} 52. e5 {[%clk 0:00:15.3]} 52... Kf5
{[%clk 0:00:06.4]} 53. Nxb6 {[%clk 0:00:12.7]} 53... Kxe5 {[%clk 0:00:06.3]} 54.
Nc4+ {[%clk 0:00:12.1]} 54... Kd5 {[%clk 0:00:06.4]} 55. b6 {[%clk 0:00:11]}
55... Kc6 {[%clk 0:00:06.5]} 56. Kh3 {[%clk 0:00:10.7]} 56... Kb7 {[%clk
0:00:06.5]} 57. Kg2 {[%clk 0:00:08.5]} 57... Kc6 {[%clk 0:00:06.8]} 58. Kf3
{[%clk 0:00:09]} 58... Kb7 {[%clk 0:00:07.2]} 59. Kg2 {[%clk 0:00:03.2]} 59...
Kc6 {[%clk 0:00:07.5]} 1/2-1/2